fUSD/lending_fUSD_20250112
["ID","MTS","AMOUNT","RATE_DAILY","PERIOD"]
[348692540,1736719848746,-500.0,0.00011065,2]
[348692542,1736719848755,-932.32,0.00011065,2]
[348692544,1736719848765,-783.63,0.00011066,2]
[348692546,1736719848774,-1193.91,0.00011066,2]
[348692548,1736719848783,-662.94,0.00011066,2]
[348692550,1736719848793,-678.57,0.00011066,2]
[348692552,1736719848802,-514.04,0.00011066,2]
[348692554,1736719848811,-1158.32,0.00011066,2]
[348692556,1736719848821,-582.93,0.00011066,2]
[348692558,1736719848830,-590.25,0.00011066,2]
[348692560,1736719848839,-590.72,0.00011066,2]
[348692562,1736719848849,-500.0,0.00011066,2]
[348692564,1736719848859,-645.37,0.00011066,2]
[348692566,1736719848869,-550.9,0.00011066,2]
[348692568,1736719848879,-837.05,0.00011066,2]
[348692570,1736719848888,-624.68,0.00011066,2]
[348692572,1736719848899,-500.0,0.00011066,2]
[348692574,1736719848909,-500.0,0.00011066,2]
[348692576,1736719848918,-500.0,0.00011066,2]
[348692578,1736719848928,-500.0,0.00011066,2]
[348692580,1736719848938,-500.0,0.00011066,2]
[348692582,1736719848947,-784.09,0.00011066,2]
[348692584,1736719848959,-500.0,0.00011066,2]
[348692585,1736719848970,-500.0,0.00011066,2]
[348692587,1736719848979,-500.0,0.00011066,2]
[348692590,1736719848989,-807.6,0.00011066,2]
[348692592,1736719849000,-500.0,0.00011066,2]
[348692594,1736719849010,-500.0,0.00011066,2]
[348692596,1736719849019,-500.0,0.00011066,2]
[348692598,1736719849028,-758.35,0.00011066,2]
[348692600,1736719849038,-500.0,0.00011066,2]
[348692602,1736719849050,-500.0,0.00011066,2]
[348692603,1736719849063,-256.71064333,0.00011066,2]
[348692605,1736719849073,-886.84,0.00011066,2]
[348692607,1736719849082,-500.0,0.00011066,2]
[348692609,1736719849091,-516.27655043,0.00011066,2]
[348692611,1736719849100,-500.0,0.00011066,2]
[348692613,1736719849110,-1106.57,0.00011066,2]
[348692615,1736719849119,-500.0,0.00011066,2]
[348692617,1736719849128,-500.0,0.00011066,2]
[348692619,1736719849138,-519.93,0.00011066,2]
[348692621,1736719849147,-500.0,0.00011066,2]
[348692623,1736719849156,-2938.94,0.00011066,2]
[348692625,1736719849166,-500.0,0.00011066,2]
[348692627,1736719849176,-302.060647,0.00011066,2]
[348692629,1736719849185,-500.0,0.00011066,2]
[348692631,1736719849194,-336.20700619,0.00011066,2]
[348692633,1736719849203,-500.0,0.00011066,2]
[348692635,1736719849212,-500.0,0.00011066,2]
[348692637,1736719849221,-500.0,0.00011066,2]
[348692639,1736719849230,-500.0,0.00011066,2]
[348692641,1736719849240,-351.990536,0.00011066,2]
[348692643,1736719849249,-500.0,0.00011066,2]
[348692645,1736719849259,-1362.48,0.00011066,2]
[348692647,1736719849268,-500.0,0.00011066,2]
[348692649,1736719849278,-500.0,0.00011066,2]
[348692651,1736719849287,-500.0,0.00011066,2]
[348692653,1736719849296,-500.0,0.00011066,2]
[348692655,1736719849305,-500.0,0.00011066,2]
[348692657,1736719849317,-525.12,0.00011066,2]
[348692659,1736719849326,-500.0,0.00011066,2]
[348692661,1736719849336,-500.0,0.00011066,2]
[348692663,1736719849346,-500.0,0.00011066,2]
[348692665,1736719849356,-500.0,0.00011066,2]
[348692667,1736719849366,-500.0,0.00011066,2]
[348692669,1736719849375,-500.0,0.00011066,2]
[348692671,1736719849385,-500.0,0.00011066,2]
[348692673,1736719849394,-500.0,0.00011066,2]
[348692676,1736719849404,-500.0,0.00011066,2]
[348692677,1736719849414,-500.0,0.00011066,2]
[348692679,1736719849423,-500.0,0.00011066,2]
[348692681,1736719849432,-500.0,0.00011066,2]
[348692683,1736719849442,-500.0,0.00011066,2]
[348692685,1736719849451,-500.0,0.00011066,2]
[348692687,1736719849460,-500.0,0.00011066,2]
[348692689,1736719849470,-1638.8,0.00011066,2]
[348692691,1736719849479,-500.0,0.00011066,2]
[348692693,1736719849488,-1527.15,0.00011066,2]
[348692695,1736719849498,-500.0,0.00011066,2]
[348692697,1736719849507,-500.0,0.00011066,2]
[348692699,1736719849516,-500.0,0.00011066,2]
[348692701,1736719849526,-500.0,0.00011066,2]
[348692703,1736719849535,-500.0,0.00011066,2]
[348692705,1736719849544,-861.4,0.00011066,2]
[348692707,1736719849553,-1086.88,0.00011066,2]
[348692709,1736719849563,-500.0,0.00011066,2]
[348692711,1736719849572,-500.0,0.00011066,2]
[348692713,1736719849581,-500.0,0.00011066,2]
[348692715,1736719849590,-500.0,0.00011066,2]
[348692717,1736719849599,-1296.32,0.00011066,2]
[348692719,1736719849608,-500.0,0.00011066,2]
[348692720,1736719849618,-500.0,0.00011066,2]
[348692722,1736719849627,-500.0,0.00011066,2]
[348692724,1736719849636,-500.0,0.00011066,2]
[348692726,1736719849646,-500.0,0.00011066,2]
[348692729,1736719849656,-500.0,0.00011066,2]
[348692731,1736719849667,-500.0,0.00011066,2]
[348692732,1736719849676,-500.0,0.00011066,2]
[348692734,1736719849686,-569.49,0.00011066,2]
[348692736,1736719849695,-500.0,0.00011066,2]
[348692738,1736719849704,-500.0,0.00011066,2]
[348692740,1736719849714,-500.0,0.00011066,2]
[348692742,1736719849723,-500.0,0.00011066,2]
[348692744,1736719849733,-500.0,0.00011066,2]
[348692746,1736719849742,-645.76,0.00011066,2]
[348692748,1736719849752,-500.0,0.00011066,2]
[348692750,1736719849761,-500.0,0.00011066,2]
[348692752,1736719849771,-500.0,0.00011066,2]
[348692754,1736719849781,-600.1,0.00011066,2]
[348692756,1736719849790,-772.86,0.00011067,2]
[348692758,1736719849799,-500.0,0.00011067,2]
[348692760,1736719849809,-500.0,0.00011067,2]
[348692762,1736719849820,-966.59,0.00011067,2]
[348692764,1736719849829,-870.03,0.00011094,2]
[348692766,1736719849839,-612.48,0.00011094,2]
[348692768,1736719849848,-500.0,0.00011095,2]
[348692770,1736719849857,-500.0,0.00011095,2]
[348692773,1736719849867,-500.0,0.00011095,2]
[348692775,1736719849876,-500.0,0.00011095,2]
[348692777,1736719849885,-500.0,0.00011095,2]
[348692779,1736719849894,-500.0,0.00011095,2]
[348692781,1736719849904,-500.0,0.00011095,2]
[348692782,1736719849913,-500.0,0.00011095,2]
[348692784,1736719849922,-500.0,0.00011095,2]
[348692786,1736719849931,-543.13,0.00011095,2]
[348692788,1736719849940,-500.0,0.00011095,2]
[348692790,1736719849950,-500.0,0.00011095,2]
[348692792,1736719849963,-500.0,0.00011095,2]
[348692794,1736719849972,-500.0,0.00011095,2]
[348692796,1736719849981,-500.0,0.00011095,2]
[348692798,1736719849990,-500.0,0.00011095,2]
[348692800,1736719850001,-500.0,0.00011095,2]
[348692802,1736719850011,-500.0,0.00011095,2]
[348692804,1736719850020,-500.0,0.00011095,2]
[348692806,1736719850029,-500.0,0.00011095,2]
[348692808,1736719850040,-500.0,0.00011095,2]
[348692810,1736719850050,-700.6,0.00011095,2]
[348692812,1736719850059,-500.0,0.00011095,2]
[348692814,1736719850071,-1713.09,0.00011095,2]
[348692816,1736719850081,-807.61,0.00011095,2]
[348692818,1736719850090,-988.32,0.00011095,2]
[348692820,1736719850100,-885.07,0.00011095,2]
[348692822,1736719850109,-732.03,0.00011095,2]
[348692824,1736719850118,-1265.0,0.00011167,2]
[348692826,1736719850128,-2012.0,0.00011167,2]
[348692828,1736719850137,-634.0,0.00011167,2]
[348692830,1736719850147,-500.0,0.00011339,2]
[348692832,1736719850156,-762.15,0.00011339,2]
[348692834,1736719850165,-2131.54,0.00011339,2]
[348692836,1736719850174,-500.0,0.00011339,2]
[348692838,1736719850183,-500.0,0.00011339,2]
[348692840,1736719850192,-500.0,0.00011339,2]
[348692842,1736719850202,-695.01,0.00011339,2]
[348692844,1736719850211,-1626.11,0.00011339,2]
[348692846,1736719850220,-973.93,0.00011339,2]
[348692848,1736719850230,-500.0,0.00011339,2]
[348692850,1736719850239,-1002.03,0.00011339,2]
[348692852,1736719850248,-500.0,0.00011339,2]
[348692854,1736719850258,-824.67,0.00011339,2]
[348692856,1736719850268,-674.3,0.00011339,2]
[348692858,1736719850277,-500.0,0.00011339,2]
[348692860,1736719850286,-1150.37,0.00011339,2]
[348692862,1736719850295,-566.7,0.00011339,2]
[348692864,1736719850305,-500.0,0.00011339,2]
[348692866,1736719850315,-500.0,0.00011339,2]
[348692868,1736719850324,-500.0,0.00011339,2]
[348692870,1736719850333,-500.0,0.00011339,2]
[348692872,1736719850343,-548.18,0.00011339,2]
[348692874,1736719850353,-500.0,0.00011339,2]
[348692876,1736719850362,-659.07,0.00011339,2]
[348692878,1736719850371,-500.0,0.00011339,2]
[348692880,1736719850380,-500.0,0.00011339,2]
[348692882,1736719850389,-500.0,0.00011339,2]
[348692884,1736719850399,-500.0,0.00011339,2]
[348692904,1736719850575,-932.32,0.00011339,2]
[348692906,1736719850586,-1764.6,0.00011339,2]
[348692908,1736719850597,-783.63,0.0001134,2]
[348692910,1736719850606,-1193.91,0.0001134,2]
[348692911,1736719850615,-662.94,0.0001134,2]
[348692912,1736719850625,-678.57,0.0001134,2]
[348692913,1736719850635,-514.04,0.0001134,2]
[348692914,1736719850644,-1158.32,0.0001134,2]
[348692915,1736719850653,-582.93,0.0001134,2]
[348692916,1736719850663,-590.25,0.0001134,2]
[348692917,1736719850672,-590.72,0.0001134,2]
[348692918,1736719850682,-500.0,0.0001134,2]
[348692920,1736719850691,-645.37,0.0001134,2]
[348692921,1736719850700,-550.9,0.0001134,2]
[348692923,1736719850710,-837.05,0.0001134,2]
[348692925,1736719850719,-624.68,0.0001134,2]
[348692927,1736719850728,-500.0,0.0001134,2]
[348692929,1736719850737,-500.0,0.0001134,2]
[348692931,1736719850746,-500.0,0.0001134,2]
[348692933,1736719850756,-500.0,0.0001134,2]
[348692935,1736719850765,-500.0,0.0001134,2]
[348692937,1736719850774,-784.09,0.0001134,2]
[348692939,1736719850784,-500.0,0.0001134,2]
[348692941,1736719850793,-500.0,0.0001134,2]
[348692944,1736719850802,-500.0,0.0001134,2]
[348692946,1736719850813,-807.6,0.0001134,2]
[348692948,1736719850822,-500.0,0.0001134,2]
[348692950,1736719850831,-500.0,0.0001134,2]
[348692951,1736719850840,-500.0,0.0001134,2]
[348692954,1736719850850,-758.35,0.0001134,2]
[348692956,1736719850860,-500.0,0.0001134,2]
[348692958,1736719850869,-500.0,0.0001134,2]
[348692960,1736719850879,-500.0,0.0001134,2]
[348692962,1736719850888,-886.84,0.0001134,2]
[348692964,1736719850897,-500.0,0.0001134,2]
[348692966,1736719850907,-1106.57,0.0001134,2]
[348692968,1736719850916,-500.0,0.0001134,2]
[348692970,1736719850925,-500.0,0.0001134,2]
[348692972,1736719850935,-519.93,0.0001134,2]
[348692974,1736719850945,-500.0,0.0001134,2]
[348692976,1736719850958,-2938.94,0.0001134,2]
[348692978,1736719850967,-500.0,0.0001134,2]
[348692980,1736719850977,-302.060647,0.0001134,2]
[348692982,1736719850987,-500.0,0.0001134,2]
[348692984,1736719850996,-500.0,0.0001134,2]
[348692986,1736719851005,-500.0,0.0001134,2]
[348692988,1736719851014,-500.0,0.0001134,2]
[348692990,1736719851024,-500.0,0.0001134,2]
[348692992,1736719851033,-351.990536,0.0001134,2]
[348692994,1736719851043,-500.0,0.0001134,2]
[348692996,1736719851053,-1362.48,0.0001134,2]
[348692998,1736719851062,-500.0,0.0001134,2]
[348693000,1736719851072,-500.0,0.0001134,2]
[348693002,1736719851081,-500.0,0.0001134,2]
[348693004,1736719851091,-500.0,0.0001134,2]
[348693006,1736719851100,-500.0,0.0001134,2]
[348693008,1736719851109,-525.12,0.0001134,2]
[348693010,1736719851119,-500.0,0.0001134,2]
[348693012,1736719851128,-500.0,0.0001134,2]
[348693014,1736719851137,-500.0,0.0001134,2]
[348693016,1736719851147,-500.0,0.0001134,2]
[348693018,1736719851156,-500.0,0.0001134,2]
[348693020,1736719851165,-500.0,0.0001134,2]
[348693022,1736719851175,-500.0,0.0001134,2]
[348693024,1736719851184,-500.0,0.0001134,2]
[348693026,1736719851194,-500.0,0.0001134,2]
[348693028,1736719851203,-500.0,0.0001134,2]
[348693030,1736719851212,-500.0,0.0001134,2]
[348693032,1736719851222,-500.0,0.0001134,2]
[348693034,1736719851231,-500.0,0.0001134,2]
[348693036,1736719851240,-500.0,0.0001134,2]
[348693038,1736719851249,-500.0,0.0001134,2]
[348693040,1736719851258,-1638.8,0.0001134,2]
[348693042,1736719851267,-500.0,0.0001134,2]
[348693044,1736719851277,-1527.15,0.0001134,2]
[348693046,1736719851286,-500.0,0.0001134,2]
[348693048,1736719851295,-500.0,0.0001134,2]
[348693050,1736719851305,-500.0,0.0001134,2]
[348693052,1736719851314,-500.0,0.0001134,2]
[348693054,1736719851324,-500.0,0.0001134,2]
[348693056,1736719851333,-861.4,0.0001134,2]
[348693058,1736719851342,-1086.88,0.0001134,2]
[348693060,1736719851352,-500.0,0.0001134,2]
[348693062,1736719851361,-500.0,0.0001134,2]
[348693064,1736719851370,-500.0,0.0001134,2]
[348693066,1736719851379,-500.0,0.0001134,2]
[348693068,1736719851389,-1296.32,0.0001134,2]
[348693070,1736719851399,-569.09213755,0.0001134,2]
[348693072,1736719851408,-500.0,0.0001134,2]
[348693074,1736719851417,-500.0,0.0001134,2]
[348693076,1736719851427,-500.0,0.0001134,2]
[348693078,1736719851437,-500.0,0.0001134,2]
[348693080,1736719851446,-500.0,0.0001134,2]
[348693082,1736719851455,-500.0,0.0001134,2]
[348693084,1736719851466,-500.0,0.0001134,2]
[348693086,1736719851475,-569.49,0.0001134,2]
[348693088,1736719851484,-500.0,0.0001134,2]
[348693090,1736719851494,-500.0,0.0001134,2]
[348693092,1736719851504,-500.0,0.0001134,2]
[348693094,1736719851513,-500.0,0.0001134,2]
[348693096,1736719851523,-500.0,0.0001134,2]
[348693098,1736719851532,-645.76,0.0001134,2]
[348693100,1736719851541,-500.0,0.0001134,2]
[348693102,1736719851551,-500.0,0.0001134,2]
[348693104,1736719851560,-500.0,0.0001134,2]
[348693106,1736719851569,-600.1,0.0001134,2]
[348693108,1736719851578,-772.86,0.00011341,2]
[348693110,1736719851587,-500.0,0.00011341,2]
[348693112,1736719851597,-500.0,0.00011341,2]
[348693114,1736719851606,-966.59,0.00011341,2]
[348693116,1736719851615,-870.03,0.00011368,2]
[348693118,1736719851624,-612.48,0.00011368,2]
[348693120,1736719851633,-500.0,0.00011369,2]
[348693122,1736719851642,-286.97870059,0.00011369,2]
[348693124,1736719851651,-500.0,0.00011369,2]
[348693126,1736719851660,-500.0,0.00011369,2]
[348693128,1736719851669,-500.0,0.00011369,2]
[348693130,1736719851678,-500.0,0.00011369,2]
[348693132,1736719851687,-500.0,0.00011369,2]
[348693134,1736719851696,-500.0,0.00011369,2]
[348693136,1736719851705,-500.0,0.00011369,2]
[348693137,1736719851715,-543.13,0.00011369,2]
[348693139,1736719851724,-595.38237189,0.00011369,2]
[348693141,1736719851733,-500.0,0.00011369,2]
[348693144,1736719851742,-500.0,0.00011369,2]
[348693146,1736719851751,-500.0,0.00011369,2]
[348693148,1736719851760,-500.0,0.00011369,2]
[348693149,1736719851769,-500.0,0.00011369,2]
[348693152,1736719851779,-500.0,0.00011369,2]
[348693154,1736719851788,-500.0,0.00011369,2]
[348693156,1736719851798,-500.0,0.00011369,2]
[348693158,1736719851807,-500.0,0.00011369,2]
[348693160,1736719851817,-500.0,0.00011369,2]
[348693162,1736719851826,-700.6,0.00011369,2]
[348693163,1736719851835,-500.0,0.00011369,2]
[348693166,1736719851844,-1713.09,0.00011369,2]
[348693168,1736719851854,-807.61,0.00011369,2]
[348693170,1736719851865,-988.32,0.00011369,2]
[348693172,1736719851876,-885.07,0.00011369,2]
[348693174,1736719851885,-732.03,0.00011369,2]
[348693176,1736719851895,-209.65696484,0.000114,2]
[348693178,1736719851904,-2751.0,0.00011507,2]
[348693180,1736719851913,-155.501,0.0001155,2]
[348693182,1736719851923,-500.0,0.00011613,2]
[348693184,1736719851932,-762.15,0.00011613,2]
[348693186,1736719851941,-2131.54,0.00011613,2]
[348693188,1736719851950,-500.0,0.00011613,2]
[348693190,1736719851963,-500.0,0.00011613,2]
[348693192,1736719851972,-500.0,0.00011613,2]
[348693194,1736719851981,-695.01,0.00011613,2]
[348693196,1736719851997,-1626.11,0.00011613,2]
[348693198,1736719852007,-973.93,0.00011613,2]
[348693200,1736719852016,-500.0,0.00011613,2]
[348693202,1736719852025,-1002.03,0.00011613,2]
[348693204,1736719852037,-500.0,0.00011613,2]
[348693206,1736719852048,-824.67,0.00011613,2]
[348693208,1736719852058,-674.3,0.00011613,2]
[348693210,1736719852067,-500.0,0.00011613,2]
[348693212,1736719852076,-1150.37,0.00011613,2]
[348693214,1736719852086,-566.7,0.00011613,2]
[348693216,1736719852096,-500.0,0.00011613,2]
[348693218,1736719852106,-500.0,0.00011613,2]
[348693221,1736719852116,-500.0,0.00011613,2]
[348693222,1736719852126,-500.0,0.00011613,2]
[348693224,1736719852135,-548.18,0.00011613,2]
[348693226,1736719852145,-500.0,0.00011613,2]
[348693229,1736719852154,-659.07,0.00011613,2]
[348693231,1736719852165,-500.0,0.00011613,2]
[348693232,1736719852174,-500.0,0.00011613,2]
[348693234,1736719852184,-500.0,0.00011613,2]
[348693236,1736719852193,-500.0,0.00011613,2]
[348693239,1736719852203,-932.32,0.00011613,2]
[348693241,1736719852212,-783.63,0.00011614,2]
[348693243,1736719852221,-1193.91,0.00011614,2]
[348693245,1736719852230,-662.94,0.00011614,2]
[348693247,1736719852241,-678.57,0.00011614,2]
[348693249,1736719852250,-514.04,0.00011614,2]
[348693251,1736719852259,-1158.32,0.00011614,2]
[348693253,1736719852268,-582.93,0.00011614,2]
[348693255,1736719852278,-590.25,0.00011614,2]
[348693257,1736719852287,-590.72,0.00011614,2]
[348693259,1736719852296,-500.0,0.00011614,2]
[348693261,1736719852305,-645.37,0.00011614,2]
[348693263,1736719852314,-550.9,0.00011614,2]
[348693265,1736719852323,-837.05,0.00011614,2]
[348693267,1736719852332,-624.68,0.00011614,2]
[348693269,1736719852341,-500.0,0.00011614,2]
[348693271,1736719852350,-500.0,0.00011614,2]
[348693272,1736719852359,-500.0,0.00011614,2]
[348693275,1736719852369,-500.0,0.00011614,2]
[348693277,1736719852378,-500.0,0.00011614,2]
[348693279,1736719852388,-784.09,0.00011614,2]
[348693281,1736719852398,-500.0,0.00011614,2]
[348693283,1736719852407,-500.0,0.00011614,2]
[348693285,1736719852416,-500.0,0.00011614,2]
[348693287,1736719852426,-807.6,0.00011614,2]
[348693289,1736719852435,-500.0,0.00011614,2]
[348693291,1736719852444,-500.0,0.00011614,2]
[348693293,1736719852454,-500.0,0.00011614,2]
[348693295,1736719852463,-758.35,0.00011614,2]
[348693297,1736719852472,-614.02565915,0.00011614,2]
[348693299,1736719852481,-500.0,0.00011614,2]
[348693301,1736719852492,-500.0,0.00011614,2]
[348693303,1736719852501,-886.84,0.00011614,2]
[348693305,1736719852512,-500.0,0.00011614,2]
[348693307,1736719852521,-1106.57,0.00011614,2]
[348693309,1736719852530,-500.0,0.00011614,2]
[348693311,1736719852539,-500.0,0.00011614,2]
[348693313,1736719852548,-519.93,0.00011614,2]
[348693315,1736719852559,-500.0,0.00011614,2]
[348693317,1736719852569,-2938.94,0.00011614,2]
[348693319,1736719852578,-500.0,0.00011614,2]
[348693321,1736719852588,-302.060647,0.00011614,2]
[348693323,1736719852597,-500.0,0.00011614,2]
[348693325,1736719852607,-500.0,0.00011614,2]
[348693327,1736719852615,-500.0,0.00011614,2]
[348693329,1736719852624,-500.0,0.00011614,2]
[348693331,1736719852634,-500.0,0.00011614,2]
[348693333,1736719852643,-351.990536,0.00011614,2]
[348693335,1736719852651,-500.0,0.00011614,2]
[348693337,1736719852661,-1362.48,0.00011614,2]
[348693339,1736719852670,-500.0,0.00011614,2]
[348693341,1736719852679,-500.0,0.00011614,2]
[348693343,1736719852688,-500.0,0.00011614,2]
[348693345,1736719852697,-500.0,0.00011614,2]
[348693347,1736719852708,-500.0,0.00011614,2]
[348693349,1736719852717,-525.12,0.00011614,2]
[348693351,1736719852726,-500.0,0.00011614,2]
[348693353,1736719852735,-500.0,0.00011614,2]
[348693355,1736719852747,-500.0,0.00011614,2]
[348693356,1736719852757,-500.0,0.00011614,2]
[348693358,1736719852766,-500.0,0.00011614,2]
[348693360,1736719852775,-500.0,0.00011614,2]
[348693363,1736719852784,-500.0,0.00011614,2]
[348693364,1736719852796,-47.96433575,0.00011614,2]
[348693466,1736719853843,-588.89278243,9.533e-05,2]
[348693468,1736719853852,-500.0,0.00010517,2]
[348693470,1736719853860,-613.15,0.00010546,2]
[348693472,1736719853869,-613.15,0.0001082,2]
[348693474,1736719853878,-452.03566425,0.00011614,2]
[348693476,1736719853888,-500.0,0.00011614,2]
[348693478,1736719853897,-500.0,0.00011614,2]
[348693480,1736719853906,-500.0,0.00011614,2]
[348693482,1736719853916,-500.0,0.00011614,2]
[348693484,1736719853925,-587.62265698,0.00011614,2]
[348693486,1736719853934,-500.0,0.00011614,2]
[348693488,1736719853943,-500.0,0.00011614,2]
[348693490,1736719853954,-1638.8,0.00011614,2]
[348693492,1736719853965,-500.0,0.00011614,2]
[348693494,1736719853974,-1527.15,0.00011614,2]
[348693495,1736719853983,-500.0,0.00011614,2]
[348693496,1736719853992,-500.0,0.00011614,2]
[348693498,1736719854001,-500.0,0.00011614,2]
[348693500,1736719854010,-500.0,0.00011614,2]
[348693501,1736719854019,-500.0,0.00011614,2]
[348693503,1736719854029,-861.4,0.00011614,2]
[348693504,1736719854039,-1086.88,0.00011614,2]
[348693505,1736719854048,-500.0,0.00011614,2]
[348693506,1736719854058,-500.0,0.00011614,2]
[348693507,1736719854067,-500.0,0.00011614,2]
[348693508,1736719854076,-500.0,0.00011614,2]
[348693509,1736719854086,-1296.32,0.00011614,2]
[348693510,1736719854096,-500.0,0.00011614,2]
[348693511,1736719854105,-500.0,0.00011614,2]
[348693512,1736719854115,-500.0,0.00011614,2]
[348693513,1736719854124,-500.0,0.00011614,2]
[348693514,1736719854134,-500.0,0.00011614,2]
[348693515,1736719854143,-500.0,0.00011614,2]
[348693516,1736719854151,-500.0,0.00011614,2]
[348693517,1736719854162,-569.49,0.00011614,2]
[348693518,1736719854172,-264.72364914,0.00011614,2]
[348693519,1736719854181,-500.0,0.00011614,2]
[348693520,1736719854191,-500.0,0.00011614,2]
[348693521,1736719854200,-500.0,0.00011614,2]
[348693522,1736719854209,-175.21652722,0.00011614,2]
[348693523,1736719854219,-645.76,0.00011614,2]
[348693524,1736719854228,-500.0,0.00011614,2]
[348693525,1736719854238,-500.0,0.00011614,2]
[348693526,1736719854248,-500.0,0.00011614,2]
[348693527,1736719854257,-600.1,0.00011614,2]
[348693528,1736719854267,-772.86,0.00011615,2]
[348693529,1736719854275,-500.0,0.00011615,2]
[348693530,1736719854285,-500.0,0.00011615,2]
[348693531,1736719854294,-966.59,0.00011615,2]
[348693532,1736719854303,-870.03,0.00011642,2]
[348693533,1736719854312,-612.48,0.00011642,2]
[348693534,1736719854324,-500.0,0.00011643,2]
[348693535,1736719854333,-500.0,0.00011643,2]
[348693536,1736719854343,-500.0,0.00011643,2]
[348693537,1736719854353,-500.0,0.00011643,2]
[348693538,1736719854363,-500.0,0.00011643,2]
[348693539,1736719854373,-500.0,0.00011643,2]
[348693540,1736719854382,-500.0,0.00011643,2]
[348693541,1736719854392,-500.0,0.00011643,2]
[348693542,1736719854401,-543.13,0.00011643,2]
[348693543,1736719854411,-500.0,0.00011643,2]
[348693544,1736719854421,-500.0,0.00011643,2]
[348693545,1736719854431,-500.0,0.00011643,2]
[348693546,1736719854440,-500.0,0.00011643,2]
[348693547,1736719854448,-500.0,0.00011643,2]
[348693548,1736719854457,-500.0,0.00011643,2]
[348693549,1736719854467,-500.0,0.00011643,2]
[348693550,1736719854476,-500.0,0.00011643,2]
[348693551,1736719854485,-500.0,0.00011643,2]
[348693552,1736719854494,-500.0,0.00011643,2]
[348693553,1736719854503,-700.6,0.00011643,2]
[348693554,1736719854512,-500.0,0.00011643,2]
[348693555,1736719854521,-1713.09,0.00011643,2]
[348693556,1736719854530,-807.61,0.00011643,2]
[348693557,1736719854539,-988.32,0.00011643,2]
[348693558,1736719854549,-885.07,0.00011643,2]
[348693559,1736719854558,-732.03,0.00011643,2]
[348693560,1736719854571,-5136.97,0.000117,2]
[348693561,1736719854580,-202.511,0.000117,2]
[348693562,1736719854589,-150.0,0.00011864,2]
[348693563,1736719854598,-500.0,0.00011887,2]
[348693564,1736719854607,-762.15,0.00011887,2]
[348693565,1736719854616,-2131.54,0.00011887,2]
[348693566,1736719854625,-500.0,0.00011887,2]
[348693567,1736719854634,-500.0,0.00011887,2]
[348693568,1736719854643,-500.0,0.00011887,2]
[348693569,1736719854652,-695.01,0.00011887,2]
[348693570,1736719854662,-1626.11,0.00011887,2]
[348693571,1736719854671,-973.93,0.00011887,2]
[348693572,1736719854680,-500.0,0.00011887,2]
[348693573,1736719854688,-1002.03,0.00011887,2]